bitfinex-derivatives/quotes_BTCF0:USTF0_20250926
["timestamp","ask_amount","ask_price","bid_price","bid_amount"]
[1758904988697,1.3621494,109380.0,109370.0,0.1268677]
[1758904989896,1.3621494,109380.0,109370.0,0.1258677]
[1758904990098,1.3621494,109380.0,109370.0,0.1268677]
[1758904992100,0.5164294,109380.0,109370.0,0.1268677]
[1758904992295,1.3620294,109380.0,109370.0,0.1268677]
[1758904995605,0.5164294,109380.0,109370.0,0.1268677]
[1758904995905,1.3619894,109380.0,109370.0,0.1268677]
[1758904996804,0.5164294,109380.0,109370.0,0.1268677]
[1758904997006,0.42506,109380.0,109370.0,0.1268677]
[1758904997206,0.42506,109380.0,109370.0,0.42180599]
[1758904997505,1.27054,109380.0,109370.0,0.42180599]
[1758904999707,1.3619093,109380.0,109370.0,0.42180599]
[1758905000408,1.3619093,109380.0,109370.0,0.03549]
[1758905000801,1.65684759,109380.0,109370.0,0.03549]
[1758905001803,0.1124476,109370.0,109360.0,0.03566]
[1758905002104,0.41984589,109370.0,109360.0,0.001]
[1758905002303,0.41984589,109370.0,109360.0,0.0923859]
[1758905002607,0.41984589,109370.0,109360.0,0.1150959]
[1758905003107,0.42084589,109370.0,109360.0,0.1150959]
[1758905004100,0.1134476,109370.0,109360.0,0.1279659]
[1758905004305,0.71027,109370.0,109360.0,0.1279659]
[1758905004500,0.02207,109370.0,109360.0,0.1279659]
[1758905005100,0.63119,109370.0,109360.0,0.1279659]
[1758905005506,0.02207,109370.0,109360.0,0.1279659]
[1758905005806,0.86735,109370.0,109360.0,0.1279659]
[1758905007014,0.02207,109370.0,109360.0,0.1279659]
[1758905007201,0.86735,109370.0,109360.0,0.1279659]
[1758905007511,0.86731,109370.0,109360.0,0.1279659]
[1758905007808,0.9586876,109370.0,109360.0,0.1279659]
[1758905008802,0.02207,109370.0,109360.0,0.1279659]
[1758905009108,0.86731,109370.0,109360.0,0.1279659]
[1758905009305,0.02207,109370.0,109360.0,0.42290419]
[1758905009499,0.72244,109370.0,109360.0,0.51434112]
[1758905009701,0.8462,109370.0,109360.0,0.51434112]
[1758905009896,0.001,109370.0,109360.0,1.20927941]
[1758905010607,0.001,109370.0,109360.0,0.91434112]
[1758905011008,0.001,109370.0,109360.0,1.75954112]
[1758905011322,0.001,109370.0,109360.0,0.9962532]
[1758905011504,0.001,109370.0,109360.0,1.8414132]
[1758905011809,0.001,109370.0,109360.0,1.75950112]
[1758905012010,0.0913703,109380.0,109370.0,0.1269576]
[1758905012011,0.1124403,109380.0,109370.0,0.1269576]
[1758905012208,0.1124403,109380.0,109370.0,0.42289589]
[1758905012608,0.1124403,109380.0,109370.0,0.51433282]
[1758905013907,0.1134403,109380.0,109370.0,0.21939453]
[1758905014807,0.02207,109380.0,109370.0,0.21939453]
[1758905015210,0.02207,109380.0,109370.0,0.51433282]
[1758905015716,0.001,109380.0,109370.0,0.51433282]
[1758905016715,0.0923692,109380.0,109370.0,0.51433282]
[1758905016909,0.1134392,109380.0,109370.0,0.51433282]
[1758905018710,0.02207,109380.0,109370.0,0.51433282]
[1758905019115,0.001,109380.0,109370.0,0.51433282]
[1758905019616,0.02207,109380.0,109370.0,0.51433282]
[1758905020011,0.1134392,109380.0,109370.0,0.51333282]
[1758905020211,0.1134392,109380.0,109370.0,0.51433282]
[1758905020917,0.1134392,109380.0,109370.0,0.1279576]
[1758905021118,0.40837749,109380.0,109370.0,0.1269576]
[1758905022219,0.1134392,109380.0,109370.0,0.1269576]
[1758905023111,1.65317749,109380.0,109370.0,0.1269576]
[1758905023918,0.80837749,109380.0,109370.0,0.1269576]
[1758905024217,1.65317749,109380.0,109370.0,0.1269576]
[1758905024717,0.80837749,109380.0,109370.0,0.1269576]
[1758905024917,1.65313749,109380.0,109370.0,0.1269576]
[1758905025320,0.5134392,109380.0,109370.0,0.1269576]
[1758905025510,1.65309749,109380.0,109370.0,0.1269576]
[1758905026719,1.65988749,109380.0,109370.0,0.1127976]
[1758905027011,1.65988749,109380.0,109370.0,0.1263976]
[1758905027219,1.65305749,109380.0,109370.0,0.1263976]
[1758905028922,1.65305749,109380.0,109370.0,0.1273976]
[1758905030618,1.65305749,109380.0,109370.0,0.1263976]
[1758905030924,1.65305749,109380.0,109370.0,0.1127976]
[1758905034614,0.5134392,109380.0,109370.0,0.1263976]
[1758905035017,1.3579192,109380.0,109370.0,0.1263976]
[1758905035217,0.5134392,109380.0,109370.0,0.1263976]
[1758905035424,1.3579192,109380.0,109370.0,0.1263976]
[1758905036322,0.5134392,109380.0,109370.0,0.1263976]
[1758905036521,1.3578792,109380.0,109370.0,0.1263976]
[1758905036923,1.3578792,109380.0,109370.0,0.1273976]
[1758905037224,0.5134392,109380.0,109370.0,0.1273976]
[1758905037428,1.3578792,109380.0,109370.0,0.1273976]
[1758905039627,0.5134392,109380.0,109370.0,0.1273976]
[1758905039828,0.42207,109380.0,109370.0,0.42233589]
[1758905040028,0.86643,109380.0,109370.0,0.42233589]
[1758905040326,0.02207,109380.0,109370.0,0.42233589]
[1758905040524,0.59471,109380.0,109370.0,0.45913547]
[1758905040916,0.686079,109380.0,109370.0,0.45913547]
[1758905041629,0.02207,109380.0,109370.0,0.45913547]
[1758905042134,0.39515,109380.0,109370.0,0.45913547]
[1758905042433,0.02207,109380.0,109370.0,0.45913547]
[1758905042630,0.68711,109380.0,109370.0,0.45913547]
[1758905043929,1.11021687,109380.0,109370.0,0.45913547]
[1758905044136,0.778479,109380.0,109370.0,0.45913547]
[1758905044430,1.11021687,109380.0,109370.0,0.45913547]
[1758905044936,1.19808787,109380.0,109370.0,0.45913547]
[1758905046329,1.28945697,109380.0,109370.0,0.45913547]
[1758905048033,1.28945697,109380.0,109370.0,0.1273976]
[1758905048233,1.28945697,109380.0,109370.0,0.45913547]
[1758905049228,1.19808787,109380.0,109370.0,0.45913547]
[1758905049430,1.19796787,109380.0,109370.0,0.45913547]
[1758905049628,0.84516,109380.0,109370.0,0.45913547]
[1758905049830,0.02322,109380.0,109370.0,0.45913547]
[1758905050133,0.86738,109380.0,109370.0,0.45913547]
[1758905050333,0.02322,109380.0,109370.0,0.45913547]
[1758905050534,1.29044687,109380.0,109370.0,0.45913547]
[1758905050935,1.31433834,109380.0,109370.0,0.45913547]
[1758905053035,0.47021834,109380.0,109370.0,0.45913547]
[1758905053236,0.84504,109380.0,109370.0,0.45913547]
[1758905053734,0.001,109380.0,109370.0,0.95056404]
[1758905055034,0.001,109380.0,109370.0,0.95146404]
[1758905055939,0.001,109380.0,109370.0,1.28320191]
[1758905056142,0.11492662,109410.0,109400.0,0.1271322]
[1758905056342,0.98276201,109410.0,109400.0,0.1271322]
[1758905056837,0.13880201,109410.0,109400.0,0.1271322]
[1758905057138,0.88000201,109410.0,109400.0,0.1271322]
[1758905057340,1.21173988,109410.0,109400.0,0.1271322]
[1758905057636,1.31449988,109410.0,109400.0,0.1271322]
[1758905057940,0.47053988,109410.0,109400.0,0.1271322]
[1758905058134,1.31445988,109410.0,109400.0,0.1271322]
[1758905058335,1.32973332,109410.0,109400.0,0.1281322]
[1758905059134,0.8841345,109410.0,109400.0,0.45987007]
[1758905059340,1.7280545,109410.0,109400.0,0.45987007]
[1758905059938,1.7280545,109410.0,109400.0,0.1281322]
[1758905060141,1.70417911,109410.0,109400.0,0.1281322]
[1758905060442,1.70413911,109410.0,109400.0,0.1281322]
[1758905060634,1.37540643,109410.0,109400.0,0.45987007]
[1758905061237,1.27478519,109410.0,109400.0,0.45987007]
[1758905061445,0.94304732,109410.0,109400.0,0.46087007]
[1758905062348,0.94300732,109410.0,109400.0,0.46087007]
[1758905062846,0.94300732,109410.0,109400.0,1.96087007]
[1758905063035,0.09920732,109410.0,109400.0,1.96989172]
[1758905063240,0.94300732,109410.0,109400.0,1.96989172]
[1758905063437,0.94300732,109410.0,109400.0,1.96087007]
[1758905063639,0.09920732,109410.0,109400.0,1.96087007]
[1758905063839,0.77656732,109410.0,109400.0,1.96087007]
[1758905065450,0.09920732,109410.0,109400.0,2.36087007]
[1758905065751,0.006,109410.0,109400.0,2.46127929]
[1758905069846,0.005,109410.0,109400.0,2.46027929]
[1758905073152,0.005,109410.0,109400.0,2.1195357]
[1758905073357,0.005,109410.0,109400.0,2.45127357]
[1758905073558,0.33673787,109410.0,109400.0,2.45127357]
[1758905073861,0.005,109410.0,109400.0,2.45127357]
[1758905074250,0.42808167,109410.0,109400.0,2.45127357]
[1758905074452,0.33673787,109410.0,109400.0,2.1195357]
[1758905074658,0.33673787,109410.0,109400.0,2.45127357]
[1758905075167,0.33673787,109410.0,109400.0,2.1195357]
[1758905075467,0.33673787,109410.0,109400.0,2.45127357]
[1758905076867,0.33673787,109410.0,109400.0,2.1195357]
[1758905077166,0.42808147,109410.0,109400.0,1.6281322]
[1758905079866,0.42808147,109410.0,109400.0,1.95987007]
[1758905082055,0.0963436,109410.0,109400.0,1.6281322]
[1758905082262,0.42808147,109410.0,109400.0,1.95987007]
[1758905083168,0.42808147,109410.0,109400.0,1.6281322]
[1758905086166,0.82808147,109410.0,109400.0,1.6281322]
[1758905086370,1.19476934,109410.0,109400.0,0.001]
[1758905086666,1.21861992,109410.0,109400.0,0.001]
[1758905089366,2.06165992,109410.0,109400.0,0.001]
[1758905089560,1.21861992,109410.0,109400.0,0.001]
[1758905089760,2.06165992,109410.0,109400.0,0.001]
[1758905092969,1.21861992,109410.0,109400.0,0.092352]
[1758905093170,2.06157992,109410.0,109400.0,0.092352]
[1758905093767,1.21861992,109410.0,109400.0,0.092352]
[1758905093959,2.06157992,109410.0,109400.0,0.092352]
[1758905094164,1.19476934,109410.0,109400.0,0.092352]
[1758905094364,2.03772934,109410.0,109400.0,0.092352]
[1758905095565,1.19476934,109410.0,109400.0,0.113482]
[1758905095764,2.03772934,109410.0,109400.0,0.092352]
[1758905096068,1.19476934,109410.0,109400.0,0.113482]
[1758905096268,2.03768934,109410.0,109400.0,0.092352]
[1758905097062,2.03768934,109410.0,109400.0,0.113482]
[1758905097270,2.03768934,109410.0,109400.0,0.092352]
[1758905098668,2.03768934,109410.0,109400.0,0.001]
[1758905098973,0.1206404,109390.0,109380.0,0.091364]
[1758905099171,1.29525827,109390.0,109380.0,0.091364]
[1758905099670,1.29525827,109390.0,109380.0,0.112494]
[1758905099865,0.45237827,109390.0,109380.0,0.112494]
[1758905100164,1.29521827,109390.0,109380.0,0.112494]
[1758905100365,1.29521827,109390.0,109380.0,0.091364]
[1758905100670,1.26142619,109390.0,109380.0,0.112494]
[1758905100870,1.26146619,109390.0,109380.0,0.112494]
[1758905101070,1.26146619,109390.0,109380.0,0.091364]
[1758905101277,1.26146619,109390.0,109380.0,0.112494]
[1758905101474,1.26146619,109390.0,109380.0,0.091364]
[1758905101959,1.26142619,109390.0,109380.0,0.112494]
[1758905102165,1.26142619,109390.0,109380.0,0.126474]
[1758905103476,1.25467619,109390.0,109380.0,0.126474]
[1758905103668,1.25463619,109390.0,109380.0,0.126474]
[1758905104975,0.41179619,109390.0,109380.0,0.126474]
[1758905105179,1.25459619,109390.0,109380.0,0.126474]
[1758905105775,0.41179619,109390.0,109380.0,0.126474]
[1758905106174,1.18647619,109390.0,109380.0,0.126474]
[1758905108177,0.41179619,109390.0,109380.0,0.03511]
[1758905108371,1.25459619,109390.0,109380.0,0.1124986]
[1758905108577,1.26138619,109390.0,109380.0,0.1124986]
[1758905108770,1.25459619,109390.0,109380.0,0.1263686]
[1758905109078,0.41179619,109390.0,109380.0,0.1263686]
[1758905109371,0.1168504,109390.0,109380.0,0.1263686]
[1758905109579,0.84159619,109390.0,109380.0,0.1263686]
[1758905109878,1.25455619,109390.0,109380.0,0.1263686]
[1758905110073,0.32043579,109390.0,109380.0,0.1263686]
[1758905110269,1.25455609,109390.0,109380.0,0.1263686]
[1758905111181,1.25451609,109390.0,109380.0,0.1263686]
[1758905112180,0.41179609,109390.0,109380.0,0.1263686]
[1758905112375,0.70461,109390.0,109380.0,0.1263686]
[1758905112880,0.86821,109390.0,109380.0,0.1263686]
[1758905113180,0.1168503,109390.0,109380.0,0.1263686]
[1758905113682,0.56325,109390.0,109380.0,0.1263686]
[1758905113880,0.02549,109390.0,109380.0,0.1263686]
[1758905114083,0.9595303,109390.0,109380.0,0.1263686]
[1758905114285,0.1168503,109390.0,109380.0,0.1263686]
[1758905114580,0.9595303,109390.0,109380.0,0.1263686]
[1758905114781,0.86817,109390.0,109380.0,0.1263686]
[1758905115382,0.02549,109390.0,109380.0,0.1263686]
[1758905115681,0.56321,109390.0,109380.0,0.1263686]
[1758905116185,0.02549,109390.0,109380.0,0.1263686]
[1758905116379,0.54057,109390.0,109380.0,0.1263686]
[1758905116579,0.1168503,109390.0,109380.0,0.1263686]
[1758905116774,0.9594903,109390.0,109380.0,0.1263686]
[1758905117582,0.1168503,109390.0,109380.0,0.1263686]
[1758905117786,0.54057,109390.0,109380.0,0.1263686]
[1758905118184,0.02549,109390.0,109380.0,0.1263686]
[1758905118486,0.54057,109390.0,109380.0,0.1263686]
[1758905118877,0.86809,109390.0,109380.0,0.1263686]
[1758905120887,0.9594502,109390.0,109380.0,0.1263686]
[1758905121386,0.86809,109390.0,109380.0,0.1263686]
[1758905122088,0.02549,109390.0,109380.0,0.1263686]
[1758905122286,0.54049,109390.0,109380.0,0.5263686]
[1758905123383,0.02549,109390.0,109380.0,0.5263686]
[1758905123686,0.86805,109390.0,109380.0,0.5263686]
[1758905124487,0.02549,109390.0,109380.0,0.5263686]
[1758905124687,0.86801,109390.0,109380.0,0.5263686]
[1758905126794,0.86797,109390.0,109380.0,0.5263686]
[1758905127890,0.02549,109390.0,109380.0,0.82131439]
[1758905128088,0.02549,109390.0,109380.0,0.5263686]
[1758905128089,0.38888,109390.0,109380.0,0.5263686]
[1758905128292,0.41118,109390.0,109380.0,0.5263686]
[1758905128889,0.41118,109390.0,109380.0,0.82131439]
[1758905129096,0.86774,109390.0,109380.0,0.82131439]
[1758905129500,0.86774,109390.0,109380.0,0.5263686]
[1758905133395,0.0253,109390.0,109380.0,0.5263686]
[1758905133592,0.8677,109390.0,109380.0,0.5263686]
[1758905134096,1.16264579,109390.0,109380.0,0.5263686]
[1758905134593,1.25400589,109390.0,109380.0,0.1263686]
[1758905134797,1.26079589,109390.0,109380.0,0.1263686]
[1758905134988,1.26079589,109390.0,109380.0,0.1124986]
[1758905135696,0.0913685,109380.0,109370.0,1.5136]
[1758905135893,0.38631429,109380.0,109370.0,1.6049709]
[1758905136795,0.38631429,109380.0,109370.0,1.5136]
[1758905136996,0.41746429,109380.0,109370.0,0.0913768]
[1758905137190,0.1261368,109370.0,109360.0,0.0913799]
[1758905137392,0.1136852,109360.0,109340.0,0.09538297]
[1758905137586,0.1136852,109360.0,109350.0,0.1260837]
[1758905137792,1.15956579,109360.0,109350.0,0.1260837]
[1758905138796,0.86462,109360.0,109350.0,0.1260837]
[1758905139597,0.9365886,109360.0,109350.0,0.1260837]
[1758905140699,0.0942686,109360.0,109350.0,0.1260837]
[1758905141095,0.6829086,109360.0,109350.0,0.1260837]
[1758905141905,0.7742938,109360.0,109350.0,0.1260837]
[1758905142093,1.06923959,109360.0,109350.0,0.1260836]
[1758905142402,1.06923959,109360.0,109350.0,0.1260837]
[1758905142993,0.0913937,109350.0,109340.0,1.60486739]
[1758905143195,0.38633949,109350.0,109340.0,1.60486739]
[1758905144304,0.0913937,109350.0,109340.0,1.60686739]
[1758905144605,0.9337537,109350.0,109340.0,1.60686739]
[1758905146003,1.22869949,109350.0,109340.0,1.60686739]
[1758905146504,0.38633949,109350.0,109340.0,1.60686739]
[1758905146711,1.09381949,109350.0,109340.0,1.60686739]
[1758905146894,0.38633949,109350.0,109340.0,1.60686739]
[1758905147099,1.09381949,109350.0,109340.0,1.60686739]
[1758905147297,0.38633949,109350.0,109340.0,1.60686739]
[1758905147801,1.09377949,109350.0,109340.0,1.60686739]
[1758905148699,0.7988337,109350.0,109340.0,1.60686739]
[1758905148897,0.38633949,109350.0,109340.0,1.60686739]
[1758905149102,1.22873949,109350.0,109340.0,1.60686739]
[1758905150703,1.23552949,109350.0,109340.0,1.50207089]
[1758905150905,0.79312949,109350.0,109340.0,1.50207089]
[1758905151104,0.79312949,109350.0,109340.0,1.60739279]
[1758905151105,0.78633949,109350.0,109340.0,1.60739279]
[1758905151510,1.62873949,109350.0,109340.0,1.60739279]
[1758905152712,1.62873949,109350.0,109340.0,1.50207089]
[1758905153201,1.62873949,109350.0,109340.0,1.50007089]
[1758905153511,1.62973949,109350.0,109340.0,1.50007089]
[1758905154102,0.4923937,109350.0,109340.0,1.59147269]
[1758905154306,1.62973949,109350.0,109340.0,1.60539269]
[1758905154605,1.63373949,109350.0,109340.0,1.60539269]
[1758905154908,0.79133949,109350.0,109340.0,1.60539269]
[1758905155409,1.63377949,109350.0,109340.0,1.60539269]
[1758905157112,0.79133949,109350.0,109340.0,1.60539269]
[1758905157414,1.63377949,109350.0,109340.0,1.60539269]
[1758905157607,1.63377949,109350.0,109340.0,1.50007089]
[1758905157807,1.63377949,109350.0,109340.0,1.59147269]
[1758905158009,1.63377949,109350.0,109340.0,1.60539269]
[1758905158213,0.79133949,109350.0,109340.0,1.60539269]
[1758905158511,1.63377949,109350.0,109340.0,1.60539269]
[1758905160615,1.16043346,109350.0,109340.0,1.60539269]
[1758905161008,0.82841358,109350.0,109340.0,1.60539269]
[1758905161317,0.84748,109350.0,109340.0,1.93741257]
[1758905161511,0.005,109350.0,109340.0,1.93741257]
[1758905161716,0.35608,109350.0,109340.0,1.93741257]
[1758905161916,0.68809988,109350.0,109340.0,1.93741257]
[1758905162115,0.005,109350.0,109340.0,2.33741257]
[1758905162310,0.14864,109350.0,109340.0,2.42886622]
[1758905162708,0.84748,109350.0,109340.0,2.42886622]
[1758905162914,0.005,109350.0,109340.0,2.42886622]
[1758905164810,0.0963935,109350.0,109340.0,2.42886622]
[1758905165016,0.005,109350.0,109340.0,2.42886622]
[1758905165215,0.0963935,109350.0,109340.0,2.42886622]
[1758905165415,0.9388735,109350.0,109340.0,2.42886622]
[1758905165822,0.84748,109350.0,109340.0,2.42886622]
[1758905166616,0.005,109350.0,109340.0,2.42886622]
[1758905166812,0.84744,109350.0,109340.0,2.42886622]
[1758905168719,0.005,109350.0,109340.0,3.27130622]
[1758905168932,0.44497178,109380.0,109370.0,0.1271467]
[1758905169126,0.89224814,109380.0,109370.0,0.45916658]
[1758905169325,0.89224374,109380.0,109370.0,0.1271467]
[1758905169726,0.13678386,109380.0,109370.0,0.1271467]
[1758905169928,1.31124366,109380.0,109370.0,0.1271467]
[1758905170220,1.29641178,109380.0,109370.0,0.1281467]
[1758905170427,1.30549415,109380.0,109370.0,0.1281467]
[1758905170732,1.30549415,109380.0,109370.0,0.46016658]
[1758905171230,1.30549415,109380.0,109370.0,0.1281467]
[1758905171630,1.3803002,109380.0,109370.0,0.1281467]
[1758905173435,1.04828032,109380.0,109370.0,0.1281467]
[1758905173733,1.3753002,109380.0,109370.0,0.45916658]
[1758905175834,1.3752202,109380.0,109370.0,0.45916658]
[1758905176139,0.5328602,109380.0,109370.0,0.1271467]
[1758905176338,1.3419002,109380.0,109370.0,0.1271467]
[1758905177334,0.5328602,109380.0,109370.0,0.1271467]
[1758905177533,1.3752202,109380.0,109370.0,0.1271467]
[1758905178634,0.5328602,109380.0,109370.0,0.1271467]
[1758905179037,1.35509783,109380.0,109370.0,0.1271467]
[1758905181443,0.52377783,109380.0,109370.0,0.1271467]
[1758905181631,1.35485783,109380.0,109370.0,0.1271467]
[1758905182645,1.36404837,109380.0,109370.0,0.1271467]
[1758905182841,0.53296837,109380.0,109370.0,0.1271467]
[1758905183036,1.37524837,109380.0,109370.0,0.1271467]
[1758905184532,1.70726825,109380.0,109370.0,0.03577]
[1758905184830,0.1141872,109370.0,109360.0,0.03424]
[1758905185038,0.45866708,109370.0,109360.0,0.02138]
[1758905185234,0.1141955,109360.0,109350.0,0.1256308]
[1758905185435,1.28849538,109360.0,109350.0,0.1256308]
[1758905185836,1.28849538,109360.0,109350.0,0.45765068]
[1758905186040,0.35482988,109360.0,109350.0,0.45765068]
[1758905186243,1.18122988,109360.0,109350.0,0.45765068]
[1758905187040,1.18122988,109360.0,109350.0,0.1256308]
[1758905187240,1.27261538,109360.0,109350.0,0.1256308]
[1758905187834,1.18122988,109360.0,109350.0,0.1256308]
[1758905188038,1.18322988,109360.0,109350.0,0.45765068]
[1758905188237,1.27461538,109360.0,109350.0,0.1256308]
[1758905189047,1.18322988,109360.0,109350.0,0.1256308]
[1758905189644,1.18322988,109360.0,109350.0,0.45765068]
[1758905190050,1.18322988,109360.0,109350.0,0.1256308]
[1758905190449,1.27461558,109360.0,109350.0,0.1256308]
[1758905190644,0.35682988,109360.0,109350.0,0.1256308]
[1758905190950,0.35682988,109360.0,109350.0,0.45765068]
[1758905191248,0.02481,109360.0,109350.0,0.85765068]
[1758905191549,0.12112,109360.0,109350.0,1.28111585]
[1758905191852,0.002,109360.0,109350.0,1.28111585]
[1758905192250,0.10679199,109380.0,109370.0,0.1260972]
[1758905192451,1.04056089,109380.0,109370.0,0.45811708]
[1758905192755,1.37258077,109380.0,109370.0,0.45811708]
[1758905192947,0.53018077,109380.0,109370.0,0.45811708]
[1758905193145,1.27018077,109380.0,109370.0,0.45811708]
[1758905193647,1.27018077,109380.0,109370.0,0.1260972]
[1758905194050,1.27518077,109380.0,109370.0,0.1260972]
[1758905194952,2.01966065,109380.0,109370.0,0.1127572]
[1758905195343,1.67518077,109380.0,109370.0,0.1260972]
[1758905196349,2.00720065,109380.0,109370.0,0.0913772]
[1758905196557,2.00720065,109380.0,109370.0,0.1127572]
[1758905196758,1.44544089,109380.0,109370.0,0.1260972]
[1758905197053,0.93518077,109380.0,109370.0,0.1260972]
[1758905197246,1.77746077,109380.0,109370.0,0.1260972]
[1758905197448,1.44544089,109380.0,109370.0,0.1260972]
[1758905197644,1.77746077,109380.0,109370.0,0.1260972]
[1758905198557,1.77746077,109380.0,109370.0,0.45811708]
[1758905198558,0.53518077,109380.0,109370.0,0.45811708]
[1758905198758,1.37750077,109380.0,109370.0,0.1260972]
[1758905199059,1.37742077,109380.0,109370.0,0.45811708]
[1758905201453,0.20316089,109380.0,109370.0,0.45811708]
[1758905201651,1.37742077,109380.0,109370.0,0.45811708]
[1758905202257,0.53518077,109380.0,109370.0,0.45811708]
[1758905202453,0.44381187,109380.0,109370.0,0.45811708]
[1758905202758,1.21969187,109380.0,109370.0,0.45811708]
[1758905203654,0.10261605,109380.0,109370.0,0.54954565]
[1758905203861,0.94485605,109380.0,109370.0,0.54954565]
[1758905204056,0.87005,109380.0,109370.0,0.94954565]
[1758905204764,1.30237878,109380.0,109370.0,0.61752577]
[1758905204951,1.30237878,109380.0,109370.0,0.85811708]
[1758905205154,1.30237878,109380.0,109370.0,0.5260972]
[1758905205360,1.30237878,109380.0,109370.0,0.1260972]
[1758905205654,1.30237878,109380.0,109370.0,0.03472]
[1758905207056,1.30237878,109380.0,109370.0,0.1260973]
[1758905207468,1.37455348,109380.0,109370.0,0.1260973]
[1758905209057,1.37455348,109380.0,109360.0,0.1265688]
[1758905209058,0.1137973,109370.0,109360.0,0.1265688]
[1758905209264,0.45466718,109370.0,109360.0,0.1265688]
[1758905209656,0.45466718,109370.0,109360.0,0.0913788]
[1758905210064,0.1138056,109360.0,109350.0,0.1260989]
[1758905210264,1.28802548,109360.0,109350.0,0.1260989]
[1758905210759,0.44582548,109360.0,109350.0,0.1260989]
[1758905210964,1.28802548,109360.0,109350.0,0.1260989]
[1758905211265,0.02242,109360.0,109350.0,0.1260989]
[1758905211465,0.35443988,109360.0,109350.0,0.45811878]
[1758905211665,0.02242,109360.0,109350.0,0.45811878]
[1758905212057,0.002,109360.0,109350.0,0.79013866]
[1758905212262,0.24444,109360.0,109350.0,0.79013866]
[1758905212566,0.02442,109360.0,109350.0,0.45811878]
[1758905212865,0.60358,109360.0,109350.0,0.1260989]
[1758905213164,0.60358,109360.0,109350.0,0.45811878]
[1758905213956,0.86666,109360.0,109350.0,0.45811878]
[1758905214562,0.002,109360.0,109350.0,0.45811878]
[1758905214767,0.84424,109360.0,109350.0,1.28158395]
[1758905215168,0.002,109360.0,109350.0,1.28158395]
[1758905215766,0.02442,109360.0,109350.0,0.94956407]
[1758905218060,0.02442,109360.0,109350.0,0.61754419]
[1758905218365,0.02442,109360.0,109350.0,0.94956407]
[1758905219163,0.002,109360.0,109350.0,0.94956407]
[1758905219364,0.002,109360.0,109350.0,1.28158395]
[1758905222569,0.002,109360.0,109350.0,0.91246603]
[1758905227173,1e-07,109360.0,109350.0,1.20738787]
[1758905227368,0.41979144,109410.0,109400.0,0.1135822]
[1758905227572,1.28584498,109410.0,109400.0,0.02223]
[1758905227769,0.44360498,109410.0,109400.0,0.02223]
[1758905227974,1.28584498,109410.0,109400.0,0.1263521]
[1758905228174,0.97846314,109410.0,109400.0,0.1263521]
[1758905228374,1.27338498,109410.0,109400.0,0.1263521]
[1758905228574,1.27338498,109410.0,109400.0,0.035]
[1758905228774,1.28238498,109410.0,109400.0,0.036]
[1758905228978,1.28234498,109410.0,109400.0,0.036]
[1758905229276,1.45893505,109410.0,109400.0,0.1273522]
[1758905229475,1.43512151,109410.0,109400.0,0.1263522]
[1758905229680,1.42912151,109410.0,109400.0,0.1263522]
[1758905230178,1.72404335,109410.0,109400.0,0.1263522]
[1758905231175,1.73326052,109410.0,109400.0,0.1263522]
[1758905233386,0.59613868,109410.0,109400.0,0.1263522]
[1758905233689,1.43825868,109410.0,109400.0,0.1263522]
[1758905234490,0.59613868,109410.0,109400.0,0.1263522]
[1758905234679,1.43825868,109410.0,109400.0,0.1263522]
[1758905235593,0.59613868,109410.0,109400.0,0.1263522]
[1758905235891,1.03821868,109410.0,109400.0,0.1263522]
[1758905238493,0.19613868,109410.0,109400.0,0.1263522]
[1758905238694,1.03817868,109410.0,109400.0,0.1263522]
[1758905239089,0.19613868,109410.0,109400.0,0.1263522]
[1758905239391,0.18692151,109410.0,109400.0,0.1263522]
[1758905239586,0.09557191,109410.0,109400.0,0.42127404]
[1758905239786,0.07451191,109410.0,109400.0,0.42127404]
[1758905241294,0.09756191,109410.0,109400.0,0.1263522]
[1758905241496,0.09756191,109410.0,109400.0,0.42127404]
[1758905242584,0.09756191,109410.0,109400.0,0.1263522]
[1758905242784,0.09756191,109410.0,109400.0,0.42127404]
[1758905242990,0.18890571,109410.0,109400.0,0.1263522]
[1758905244399,0.09756191,109410.0,109400.0,0.1263522]
[1758905244896,0.18890571,109410.0,109400.0,0.1263522]
[1758905246703,1.03082571,109410.0,109400.0,0.1263522]
[1758905249897,1.03082571,109410.0,109400.0,0.1263522]
[1758905250692,1.32574755,109410.0,109400.0,0.035]
[1758905250894,0.1144105,109390.0,109380.0,0.03542]
[1758905251092,1.25121234,109390.0,109380.0,0.1267873]
[1758905254090,0.1144105,109390.0,109380.0,0.1267873]
[1758905254288,0.02305,109390.0,109380.0,0.1267873]
[1758905254492,0.02305,109390.0,109380.0,0.42170914]
[1758905254689,0.29037,109390.0,109380.0,0.42170914]
[1758905254891,0.86493,109390.0,109380.0,0.42170914]
[1758905255097,0.86493,109390.0,109380.0,0.1267873]
[1758905255704,0.9562905,109390.0,109380.0,0.1267873]
[1758905255900,0.1144105,109390.0,109380.0,0.1267873]
[1758905256204,0.9562905,109390.0,109380.0,0.1267873]
[1758905258105,0.86493,109390.0,109380.0,0.1267873]
[1758905258495,0.02305,109390.0,109380.0,0.1267873]
[1758905258696,0.86493,109390.0,109380.0,0.1267873]
[1758905258897,0.86593,109390.0,109380.0,0.1267873]
[1758905259094,0.001,109390.0,109380.0,0.5267873]
[1758905259297,0.001,109390.0,109380.0,0.91312935]
[1758905259496,0.001,109390.0,109380.0,0.51312935]
[1758905261508,0.02405,109390.0,109380.0,0.51312935]
[1758905261704,0.1154105,109390.0,109380.0,0.51312935]
[1758905261905,0.1154105,109390.0,109380.0,0.21820751]
[1758905262303,0.001,109390.0,109380.0,0.21820751]
[1758905262607,0.02376,109390.0,109380.0,0.21820751]
[1758905263502,0.02376,109390.0,109380.0,0.51312935]
[1758905263708,0.001,109390.0,109380.0,0.51312935]
[1758905264311,0.02376,109390.0,109380.0,0.51312935]
[1758905264710,0.001,109390.0,109380.0,0.51312935]
[1758905265113,0.001,109390.0,109380.0,0.21820751]
[1758905265304,0.001,109390.0,109380.0,0.51312935]
[1758905265804,0.02376,109390.0,109380.0,0.51312935]
[1758905266310,0.02376,109390.0,109380.0,0.21820751]
[1758905266511,0.1151204,109390.0,109380.0,0.21820751]
[1758905266700,0.41004224,109390.0,109380.0,0.21820751]
[1758905266902,0.41004224,109390.0,109380.0,0.03542]
[1758905267212,0.1141288,109380.0,109370.0,0.03607]
[1758905267511,0.9570888,109380.0,109370.0,0.1274471]
[1758905267704,1.25201064,109380.0,109370.0,0.1274471]
[1758905268306,1.25189064,109380.0,109370.0,0.1274471]
[1758905268500,0.9569688,109380.0,109370.0,0.1274471]
[1758905269509,0.1141288,109380.0,109370.0,0.1274471]
[1758905269709,0.86556,109380.0,109370.0,0.1274471]
[1758905270112,0.9567289,109380.0,109370.0,0.1274471]
[1758905270714,0.1141289,109380.0,109370.0,0.1274471]
[1758905270911,0.9566889,109380.0,109370.0,0.1274471]
[1758905271912,0.9566489,109380.0,109370.0,0.1274471]